[Event "Titled Tuesday Blitz June 28 Early 2022"]
[White "Ibarra Jerez, Jose Carlos"]
[Black "Harvey, Marcus R"]
[WhiteFideId "2226332"]
[BlackFideId "400092"]
[WhiteElo "2628"]
[BlackElo "2485"]
[Result "1-0"]
[Round "05"]
[TimeControl "180+1"]
[Date "2022.06.28"]
[WhiteClock "0:00:04"]
[BlackClock "0:00:02"]

1. Nf3 {[%clk 0:03:00]}  d5 {[%clk 0:02:59]} 2. g3 {[%clk 0:03:01]}  g6 {[%clk 0:02:59]} 3. Bg2 {[%clk 0:03:02]}  Bg7 {[%clk 0:03:00]} 4. O-O {[%clk 0:03:00]}  e5 {[%clk 0:03:00]} 5. d3 {[%clk 0:03:01]}  Ne7 {[%clk 0:03:00]} 6. e4 {[%clk 0:03:02]}  O-O {[%clk 0:02:59]} 7. exd5 {[%clk 0:03:02]}  Nxd5 {[%clk 0:03:00]} 8. Re1 {[%clk 0:03:02]}  Re8 {[%clk 0:02:59]} 9. Nc3 {[%clk 0:03:03]}  Nxc3 {[%clk 0:02:58]} 10. bxc3 {[%clk 0:03:04]}  Nc6 {[%clk 0:02:57]} 11. Nd2 {[%clk 0:03:04]}  Be6 {[%clk 0:02:57]} 12. Rb1 {[%clk 0:03:03]}  Qc8 {[%clk 0:02:56]} 13. a4 {[%clk 0:03:01]}  Bg4 {[%clk 0:02:55]} 14. f3 {[%clk 0:02:55]}  Bd7 {[%clk 0:02:54]} 15. Ne4 {[%clk 0:02:56]}  b6 {[%clk 0:02:54]} 16. Bg5 {[%clk 0:02:55]}  Re6 {[%clk 0:02:53]} 17. Nd2 {[%clk 0:02:41]}  Qf8 {[%clk 0:02:44]} 18. Be3 {[%clk 0:02:38]}  Ree8 {[%clk 0:02:38]} 19. Qc1 {[%clk 0:02:27]}  Na5 {[%clk 0:02:36]} 20. Ra1 {[%clk 0:02:18]}  c5 {[%clk 0:02:22]} 21. c4 {[%clk 0:02:13]}  Rad8 {[%clk 0:02:12]} 22. Ne4 {[%clk 0:02:11]}  f5 {[%clk 0:02:08]} 23. Nc3 {[%clk 0:02:10]}  e4 {[%clk 0:02:06]} 24. Nd5 {[%clk 0:02:10]}  exd3 {[%clk 0:02:01]} 25. Ra2 {[%clk 0:01:24]}  dxc2 {[%clk 0:01:57]} 26. Rxc2 {[%clk 0:01:15]}  Bxa4 {[%clk 0:01:55]} 27. Rce2 {[%clk 0:01:15]}  Bc6 {[%clk 0:01:51]} 28. Bg5 {[%clk 0:01:12]}  Rxe2 {[%clk 0:01:39]} 29. Rxe2 {[%clk 0:01:12]}  Re8 {[%clk 0:01:39]} 30. Qe1 {[%clk 0:00:55]}  Rxe2 {[%clk 0:01:10]} 31. Qxe2 {[%clk 0:00:55]}  Qe8 {[%clk 0:01:11]} 32. Qd3 {[%clk 0:00:20]}  Bd4+ {[%clk 0:01:04]} 33. Kf1 {[%clk 0:00:19]}  Nxc4 {[%clk 0:01:00]} 34. Ne7+ {[%clk 0:00:07]}  Kf8 {[%clk 0:00:30]} 35. Nxc6 {[%clk 0:00:05]}  Qxc6 {[%clk 0:00:13]} 36. Qxc4 {[%clk 0:00:05]}  b5 {[%clk 0:00:14]} 37. Bh6+ {[%clk 0:00:05]}  Ke7 {[%clk 0:00:13]} 38. Qe2+ {[%clk 0:00:05]}  Kd7 {[%clk 0:00:11]} 39. f4 {[%clk 0:00:05]}  Qe6 {[%clk 0:00:10]} 40. Qxb5+ {[%clk 0:00:04]}  Ke7 {[%clk 0:00:03]} 41. Bg5+ {[%clk 0:00:04]}  Kf7 {[%clk 0:00:02]} 42. Qb7+ {[%clk 0:00:04]}  Kf8 {[%clk 0:00:02]} 43. Qa8+ {[%clk 0:00:04]}  Kf7 {[%clk 0:00:02]} 44. Bd5 {[%clk 0:00:04]} 1-0


[Site "https://www.chess.com"]

[Event "Titled Tuesday Blitz June 28 Early 2022"]
[White "Ismayil, Malak"]
[Black "Kanyamarala, Trisha"]
[WhiteFideId "13412604"]
[BlackFideId "45004722"]
[WhiteElo "1879"]
[BlackElo "2134"]
[Result "0-1"]
[Round "05"]
[TimeControl "180+1"]
[Date "2022.06.28"]
[WhiteClock "0:00:04"]
[BlackClock "0:00:02"]

1. e4 {[%clk 0:03:00]}  c5 {[%clk 0:02:59]} 2. Nf3 {[%clk 0:02:59]}  a6 {[%clk 0:02:59]} 3. Nc3 {[%clk 0:02:53]}  d6 {[%clk 0:02:58]} 4. d4 {[%clk 0:02:50]}  cxd4 {[%clk 0:02:58]} 5. Nxd4 {[%clk 0:02:51]}  Nc6 {[%clk 0:02:58]} 6. Nxc6 {[%clk 0:02:48]}  bxc6 {[%clk 0:02:58]} 7. Bc4 {[%clk 0:02:49]}  e5 {[%clk 0:02:53]} 8. O-O {[%clk 0:02:46]}  Nf6 {[%clk 0:02:54]} 9. h3 {[%clk 0:02:37]}  Be7 {[%clk 0:02:53]} 10. Be3 {[%clk 0:02:37]}  Bb7 {[%clk 0:02:49]} 11. Bb3 {[%clk 0:02:31]}  d5 {[%clk 0:02:39]} 12. Bg5 {[%clk 0:02:26]}  d4 {[%clk 0:02:36]} 13. Bxf6 {[%clk 0:02:24]}  Bxf6 {[%clk 0:02:31]} 14. Na4 {[%clk 0:02:17]}  O-O {[%clk 0:02:25]} 15. c3 {[%clk 0:02:13]}  Be7 {[%clk 0:02:13]} 16. cxd4 {[%clk 0:02:06]}  exd4 {[%clk 0:02:13]} 17. Rc1 {[%clk 0:02:06]}  Qd6 {[%clk 0:01:57]} 18. Nc5 {[%clk 0:02:01]}  Bc8 {[%clk 0:01:55]} 19. Qd3 {[%clk 0:02:01]}  Rd8 {[%clk 0:01:45]} 20. Rfd1 {[%clk 0:01:59]}  Qe5 {[%clk 0:01:45]} 21. Qc4 {[%clk 0:01:44]}  Bxc5 {[%clk 0:01:11]} 22. Qxc5 {[%clk 0:01:42]}  Qxe4 {[%clk 0:01:08]} 23. Re1 {[%clk 0:01:31]}  Qg6 {[%clk 0:00:59]} 24. Re7 {[%clk 0:00:43]}  Be6 {[%clk 0:00:38]} 25. Bxe6 {[%clk 0:00:42]}  fxe6 {[%clk 0:00:38]} 26. Qxc6 {[%clk 0:00:42]}  d3 {[%clk 0:00:33]} 27. Rxe6 {[%clk 0:00:38]}  Qh5 {[%clk 0:00:26]} 28. f3 {[%clk 0:00:27]}  Rac8 {[%clk 0:00:05]} 29. Qxc8 {[%clk 0:00:26]}  Rxc8 {[%clk 0:00:06]} 30. Rxc8+ {[%clk 0:00:26]}  Kf7 {[%clk 0:00:07]} 31. Rd6 {[%clk 0:00:26]}  Qf5 {[%clk 0:00:05]} 32. Rcd8 {[%clk 0:00:25]}  Qe5 {[%clk 0:00:05]} 33. Rxd3 {[%clk 0:00:19]}  Qe1+ {[%clk 0:00:05]} 34. Kh2 {[%clk 0:00:19]}  Qe5+ {[%clk 0:00:05]} 35. Kg1 {[%clk 0:00:13]}  Qe1+ {[%clk 0:00:05]} 36. Kh2 {[%clk 0:00:13]}  Qe5+ {[%clk 0:00:05]} 37. f4 {[%clk 0:00:14]}  Qxf4+ {[%clk 0:00:04]} 38. Kg1 {[%clk 0:00:14]}  Qc1+ {[%clk 0:00:04]} 39. Rd1 {[%clk 0:00:13]}  Qxb2 {[%clk 0:00:04]} 40. R1d2 {[%clk 0:00:13]}  Qb6+ {[%clk 0:00:03]} 41. Kh2 {[%clk 0:00:13]}  Qc7+ {[%clk 0:00:03]} 42. Kh1 {[%clk 0:00:13]}  Qc1+ {[%clk 0:00:03]} 43. Rd1 {[%clk 0:00:13]}  Qb2 {[%clk 0:00:03]} 44. R8d7+ {[%clk 0:00:13]}  Ke6 {[%clk 0:00:03]} 45. R7d6+ {[%clk 0:00:13]}  Ke5 {[%clk 0:00:04]} 46. Rxa6 {[%clk 0:00:12]}  h6 {[%clk 0:00:03]} 47. Re1+ {[%clk 0:00:11]}  Kf5 {[%clk 0:00:03]} 48. Rf1+ {[%clk 0:00:10]}  Kg5 {[%clk 0:00:03]} 49. Ra5+ {[%clk 0:00:07]}  Kg6 {[%clk 0:00:03]} 50. a4 {[%clk 0:00:05]}  Qb4 {[%clk 0:00:02]} 51. Ra6+ {[%clk 0:00:05]}  Kh7 {[%clk 0:00:02]} 52. a5 {[%clk 0:00:04]}  Qc4 {[%clk 0:00:02]} 0-1


[Site "https://www.chess.com"]

[Event "Titled Tuesday Blitz June 28 Early 2022"]
[White "Jia, Haoxiang"]
[Black "Sukandar, Irine Kharisma"]
[WhiteFideId "8602999"]
[BlackFideId "7101937"]
[WhiteElo "2613"]
[BlackElo "2293"]
[Result "1/2-1/2"]
[Round "05"]
[TimeControl "180+1"]
[Date "2022.06.28"]
[WhiteClock "0:00:13"]
[BlackClock "0:00:19"]

1. d4 {[%clk 0:03:00]}  Nf6 {[%clk 0:02:56]} 2. c4 {[%clk 0:02:57]}  c5 {[%clk 0:02:55]} 3. d5 {[%clk 0:02:57]}  b5 {[%clk 0:02:55]} 4. cxb5 {[%clk 0:02:58]}  a6 {[%clk 0:02:55]} 5. bxa6 {[%clk 0:02:59]}  g6 {[%clk 0:02:55]} 6. Nc3 {[%clk 0:03:00]}  Bg7 {[%clk 0:02:53]} 7. Nf3 {[%clk 0:03:00]}  Bxa6 {[%clk 0:02:50]} 8. e4 {[%clk 0:03:00]}  Bxf1 {[%clk 0:02:50]} 9. Kxf1 {[%clk 0:03:01]}  d6 {[%clk 0:02:50]} 10. g3 {[%clk 0:03:01]}  O-O {[%clk 0:02:50]} 11. Kg2 {[%clk 0:03:02]}  Qa5 {[%clk 0:02:50]} 12. h3 {[%clk 0:03:02]}  Na6 {[%clk 0:02:45]} 13. Re1 {[%clk 0:03:00]}  Rfb8 {[%clk 0:02:43]} 14. e5 {[%clk 0:02:55]}  Nd7 {[%clk 0:02:33]} 15. e6 {[%clk 0:02:51]}  fxe6 {[%clk 0:02:31]} 16. Rxe6 {[%clk 0:02:44]}  Re8 {[%clk 0:02:31]} 17. Bg5 {[%clk 0:02:36]}  Bxc3 {[%clk 0:02:22]} 18. bxc3 {[%clk 0:02:36]}  Qxc3 {[%clk 0:02:23]} 19. Rxe7 {[%clk 0:02:17]}  Ne5 {[%clk 0:02:08]} 20. Rc1 {[%clk 0:01:55]}  Qxf3+ {[%clk 0:02:02]} 21. Qxf3 {[%clk 0:01:53]}  Nxf3 {[%clk 0:02:02]} 22. Kxf3 {[%clk 0:01:54]}  Nb4 {[%clk 0:02:02]} 23. Rxe8+ {[%clk 0:01:31]}  Rxe8 {[%clk 0:02:02]} 24. Bf4 {[%clk 0:01:32]}  Rf8 {[%clk 0:01:51]} 25. Ke4 {[%clk 0:01:20]}  Nxa2 {[%clk 0:01:46]} 26. Rc4 {[%clk 0:01:17]}  Rf6 {[%clk 0:01:39]} 27. f3 {[%clk 0:01:03]}  Nb4 {[%clk 0:01:38]} 28. Bd2 {[%clk 0:01:00]}  Rf5 {[%clk 0:01:20]} 29. Bxb4 {[%clk 0:00:57]}  Re5+ {[%clk 0:01:20]} 30. Kf4 {[%clk 0:00:47]}  cxb4 {[%clk 0:01:07]} 31. Rxb4 {[%clk 0:00:47]}  Rxd5 {[%clk 0:01:05]} 32. Rb7 {[%clk 0:00:48]}  Rf5+ {[%clk 0:00:56]} 33. Ke4 {[%clk 0:00:45]}  Re5+ {[%clk 0:00:56]} 34. Kd4 {[%clk 0:00:43]}  Re1 {[%clk 0:00:55]} 35. Rd7 {[%clk 0:00:35]}  Rg1 {[%clk 0:00:50]} 36. g4 {[%clk 0:00:35]}  Rg3 {[%clk 0:00:49]} 37. Ke4 {[%clk 0:00:35]}  Rxh3 {[%clk 0:00:48]} 38. Rxd6 {[%clk 0:00:36]}  Rh1 {[%clk 0:00:45]} 39. Rd7 {[%clk 0:00:35]}  Re1+ {[%clk 0:00:41]} 40. Kf4 {[%clk 0:00:35]}  Re2 {[%clk 0:00:35]} 41. Kg5 {[%clk 0:00:34]}  Re3 {[%clk 0:00:29]} 42. f4 {[%clk 0:00:34]}  Ra3 {[%clk 0:00:29]} 43. Rb7 {[%clk 0:00:28]}  Rc3 {[%clk 0:00:28]} 44. Kh6 {[%clk 0:00:18]}  Rh3+ {[%clk 0:00:27]} 45. Kg5 {[%clk 0:00:18]}  Ra3 {[%clk 0:00:28]} 46. f5 {[%clk 0:00:16]}  gxf5 {[%clk 0:00:27]} 47. gxf5 {[%clk 0:00:15]}  Ra6 {[%clk 0:00:24]} 48. f6 {[%clk 0:00:10]}  Ra1 {[%clk 0:00:21]} 49. Rg7+ {[%clk 0:00:09]}  Kf8 {[%clk 0:00:18]} 50. Rxh7 {[%clk 0:00:09]}  Rg1+ {[%clk 0:00:18]} 51. Kf5 {[%clk 0:00:10]}  Rf1+ {[%clk 0:00:19]} 52. Ke6 {[%clk 0:00:10]}  Re1+ {[%clk 0:00:19]} 53. Kd6 {[%clk 0:00:11]}  Rd1+ {[%clk 0:00:19]} 54. Kc5 {[%clk 0:00:12]}  Rf1 {[%clk 0:00:19]} 55. f7 {[%clk 0:00:12]}  Rxf7 {[%clk 0:00:18]} 56. Rxf7+ {[%clk 0:00:13]}  Kxf7 {[%clk 0:00:19]} 1/2-1/2


[Site "https://www.chess.com"]

[Event "Titled Tuesday Blitz June 28 Early 2022"]
[White "Johnson, Ben"]
[Black "Kupervaser, Erez"]
[WhiteFideId "2010917"]
[BlackFideId "2814587"]
[WhiteElo "2181"]
[BlackElo "1832"]
[Result "1/2-1/2"]
[Round "05"]
[TimeControl "180+1"]
[Date "2022.06.28"]
[WhiteClock "0:00:11"]
[BlackClock "0:00:42"]

1. Nf3 {[%clk 0:03:00]}  Nf6 {[%clk 0:02:15]} 2. c4 {[%clk 0:03:00]}  c5 {[%clk 0:02:15]} 3. Nc3 {[%clk 0:02:59]}  e6 {[%clk 0:02:15]} 4. b4 {[%clk 0:02:54]}  cxb4 {[%clk 0:02:15]} 5. Nb5 {[%clk 0:02:53]}  a6 {[%clk 0:02:12]} 6. Nbd4 {[%clk 0:02:53]}  Nc6 {[%clk 0:02:10]} 7. e3 {[%clk 0:02:52]}  Nxd4 {[%clk 0:02:10]} 8. exd4 {[%clk 0:02:52]}  d5 {[%clk 0:02:10]} 9. c5 {[%clk 0:02:50]}  Be7 {[%clk 0:02:09]} 10. a3 {[%clk 0:02:46]}  bxa3 {[%clk 0:02:09]} 11. Bxa3 {[%clk 0:02:46]}  O-O {[%clk 0:02:09]} 12. Bd3 {[%clk 0:02:46]}  Bd7 {[%clk 0:02:06]} 13. Qc2 {[%clk 0:02:42]}  Qc7 {[%clk 0:02:02]} 14. O-O {[%clk 0:02:40]}  Bb5 {[%clk 0:02:00]} 15. Bxb5 {[%clk 0:02:35]}  axb5 {[%clk 0:02:01]} 16. Bb4 {[%clk 0:02:32]}  Ra4 {[%clk 0:02:00]} 17. Rxa4 {[%clk 0:02:29]}  bxa4 {[%clk 0:02:01]} 18. Qxa4 {[%clk 0:02:29]}  Qc6 {[%clk 0:01:58]} 19. Qxc6 {[%clk 0:02:20]}  bxc6 {[%clk 0:01:59]} 20. Ne5 {[%clk 0:02:20]}  Rc8 {[%clk 0:01:55]} 21. Ra1 {[%clk 0:02:16]}  Ne4 {[%clk 0:01:32]} 22. f3 {[%clk 0:02:10]}  f6 {[%clk 0:01:33]} 23. Nd3 {[%clk 0:01:33]}  Ng5 {[%clk 0:01:28]} 24. Ra6 {[%clk 0:01:26]}  Nf7 {[%clk 0:01:18]} 25. Ba5 {[%clk 0:01:22]}  Bd8 {[%clk 0:01:18]} 26. Nb4 {[%clk 0:01:18]}  Bxa5 {[%clk 0:01:16]} 27. Rxa5 {[%clk 0:01:19]}  Kf8 {[%clk 0:01:13]} 28. Ra6 {[%clk 0:01:15]}  Nd8 {[%clk 0:01:14]} 29. Ra7 {[%clk 0:01:16]}  Rb8 {[%clk 0:01:05]} 30. Na6 {[%clk 0:01:00]}  Rb1+ {[%clk 0:01:05]} 31. Kf2 {[%clk 0:00:59]}  Ra1 {[%clk 0:01:05]} 32. Rd7 {[%clk 0:00:41]}  Rxa6 {[%clk 0:01:03]} 33. Rxd8+ {[%clk 0:00:41]}  Ke7 {[%clk 0:01:03]} 34. Rg8 {[%clk 0:00:36]}  Kf7 {[%clk 0:01:01]} 35. Rc8 {[%clk 0:00:36]}  Ke7 {[%clk 0:01:02]} 36. Rc7+ {[%clk 0:00:36]}  Kf8 {[%clk 0:01:01]} 37. Ke3 {[%clk 0:00:34]}  h5 {[%clk 0:01:00]} 38. g4 {[%clk 0:00:29]}  hxg4 {[%clk 0:00:59]} 39. fxg4 {[%clk 0:00:30]}  g5 {[%clk 0:01:00]} 40. d3 {[%clk 0:00:28]}  Ra2 {[%clk 0:00:58]} 41. Rxc6 {[%clk 0:00:27]}  Kf7 {[%clk 0:00:59]} 42. Rc7+ {[%clk 0:00:27]}  Kg6 {[%clk 0:00:59]} 43. Re7 {[%clk 0:00:26]}  Rxh2 {[%clk 0:00:56]} 44. Rxe6 {[%clk 0:00:25]}  Rh3+ {[%clk 0:00:56]} 45. Kd2 {[%clk 0:00:25]}  Kf7 {[%clk 0:00:54]} 46. Rd6 {[%clk 0:00:25]}  Rg3 {[%clk 0:00:55]} 47. c6 {[%clk 0:00:23]}  Ke7 {[%clk 0:00:55]} 48. Rd7+ {[%clk 0:00:23]}  Ke8 {[%clk 0:00:56]} 49. Rxd5 {[%clk 0:00:23]}  Rg2+ {[%clk 0:00:53]} 50. Kc3 {[%clk 0:00:22]}  Rg1 {[%clk 0:00:53]} 51. Kb4 {[%clk 0:00:20]}  Rc1 {[%clk 0:00:52]} 52. Rc5 {[%clk 0:00:20]}  Rb1+ {[%clk 0:00:53]} 53. Kc3 {[%clk 0:00:19]}  Kd8 {[%clk 0:00:53]} 54. Kd2 {[%clk 0:00:19]}  Kc7 {[%clk 0:00:53]} 55. Ke3 {[%clk 0:00:19]}  Rf1 {[%clk 0:00:53]} 56. Rf5 {[%clk 0:00:16]}  Rxf5 {[%clk 0:00:44]} 57. gxf5 {[%clk 0:00:17]}  Kxc6 {[%clk 0:00:45]} 58. Ke4 {[%clk 0:00:17]}  Kd6 {[%clk 0:00:45]} 59. d5 {[%clk 0:00:17]}  Kc5 {[%clk 0:00:45]} 60. d4+ {[%clk 0:00:17]}  Kd6 {[%clk 0:00:46]} 61. Ke3 {[%clk 0:00:15]}  Kxd5 {[%clk 0:00:46]} 62. Kd3 {[%clk 0:00:16]}  g4 {[%clk 0:00:46]} 63. Ke3 {[%clk 0:00:16]}  g3 {[%clk 0:00:46]} 64. Kf3 {[%clk 0:00:17]}  Kxd4 {[%clk 0:00:47]} 65. Kxg3 {[%clk 0:00:17]}  Ke5 {[%clk 0:00:46]} 66. Kg4 {[%clk 0:00:17]}  Ke4 {[%clk 0:00:47]} 67. Kg3 {[%clk 0:00:16]}  Kxf5 {[%clk 0:00:48]} 68. Kf3 {[%clk 0:00:17]}  Ke5 {[%clk 0:00:48]} 69. Ke3 {[%clk 0:00:18]}  f5 {[%clk 0:00:45]} 70. Kf3 {[%clk 0:00:18]}  f4 {[%clk 0:00:42]} 71. Kf2 {[%clk 0:00:17]}  Ke4 {[%clk 0:00:42]} 72. Ke2 {[%clk 0:00:18]}  f3+ {[%clk 0:00:42]} 73. Kf2 {[%clk 0:00:18]}  Kf4 {[%clk 0:00:43]} 74. Kf1 {[%clk 0:00:18]}  Kg3 {[%clk 0:00:43]} 75. Kg1 {[%clk 0:00:19]}  Kf4 {[%clk 0:00:42]} 76. Kf2 {[%clk 0:00:19]}  Ke4 {[%clk 0:00:43]} 77. Kf1 {[%clk 0:00:18]}  Ke3 {[%clk 0:00:43]} 78. Ke1 {[%clk 0:00:19]}  Ke4 {[%clk 0:00:43]} 79. Kf2 {[%clk 0:00:14]}  Kf4 {[%clk 0:00:43]} 80. Kf1 {[%clk 0:00:14]}  Kg4 {[%clk 0:00:43]} 81. Kf2 {[%clk 0:00:11]}  Kf4 {[%clk 0:00:42]} 1/2-1/2


[Site "https://www.chess.com"]

[Event "Titled Tuesday Blitz June 28 Early 2022"]
[White "Kanyamarala, Tarun"]
[Black "Gundam, Rohit"]
[WhiteFideId "45004714"]
[BlackFideId "75002809"]
[WhiteElo "2219"]
[BlackElo "2332"]
[Result "0-1"]
[Round "05"]
[TimeControl "180+1"]
[Date "2022.06.28"]
[WhiteClock "0:01:56"]
[BlackClock "0:02:23"]

1. Nf3 {[%clk 0:02:57]}  Nf6 {[%clk 0:02:59]} 2. g3 {[%clk 0:02:57]}  d5 {[%clk 0:02:59]} 3. b3 {[%clk 0:02:57]}  c5 {[%clk 0:02:58]} 4. Bb2 {[%clk 0:02:57]}  Nc6 {[%clk 0:02:59]} 5. Bg2 {[%clk 0:02:58]}  g6 {[%clk 0:02:59]} 6. O-O {[%clk 0:02:55]}  Bg7 {[%clk 0:02:59]} 7. d4 {[%clk 0:02:49]}  Ne4 {[%clk 0:03:00]} 8. e3 {[%clk 0:02:47]}  O-O {[%clk 0:02:59]} 9. Nbd2 {[%clk 0:02:47]}  Bf5 {[%clk 0:02:57]} 10. Nh4 {[%clk 0:02:44]}  Rc8 {[%clk 0:02:54]} 11. Nxf5 {[%clk 0:02:43]}  gxf5 {[%clk 0:02:55]} 12. Nxe4 {[%clk 0:02:39]}  dxe4 {[%clk 0:02:52]} 13. c3 {[%clk 0:02:38]}  cxd4 {[%clk 0:02:44]} 14. exd4 {[%clk 0:02:38]}  e6 {[%clk 0:02:44]} 15. Qe2 {[%clk 0:02:36]}  Ne7 {[%clk 0:02:44]} 16. f3 {[%clk 0:02:30]}  Nd5 {[%clk 0:02:41]} 17. Rac1 {[%clk 0:02:26]}  Qa5 {[%clk 0:02:31]} 18. b4 {[%clk 0:02:00]}  Qxa2 {[%clk 0:02:29]} 19. Ra1 {[%clk 0:01:58]}  Nxc3 {[%clk 0:02:26]} 20. Rxa2 {[%clk 0:01:55]}  Nxe2+ {[%clk 0:02:25]} 21. Kf2 {[%clk 0:01:55]}  Rc2 {[%clk 0:02:24]} 22. fxe4 {[%clk 0:01:56]}  Nc3+ {[%clk 0:02:23]} 0-1


[Site "https://www.chess.com"]

[Event "Titled Tuesday Blitz June 28 Early 2022"]
[White "Khamdamova, Afruza"]
[Black "Gubajdullin, Alexei"]
[WhiteFideId "14210444"]
[BlackFideId "4141202"]
[WhiteElo "1660"]
[BlackElo "2280"]
[Result "0-1"]
[Round "05"]
[TimeControl "180+1"]
[Date "2022.06.28"]
[WhiteClock "0:00:20"]
[BlackClock "0:00:38"]

1. e4 {[%clk 0:03:00]}  g6 {[%clk 0:02:59]} 2. d4 {[%clk 0:03:00]}  Bg7 {[%clk 0:03:00]} 3. Nc3 {[%clk 0:03:00]}  d6 {[%clk 0:03:00]} 4. Be3 {[%clk 0:03:00]}  a6 {[%clk 0:03:00]} 5. Qd2 {[%clk 0:02:59]}  b5 {[%clk 0:02:59]} 6. f3 {[%clk 0:02:57]}  Nd7 {[%clk 0:02:58]} 7. O-O-O {[%clk 0:02:57]}  Nb6 {[%clk 0:02:54]} 8. d5 {[%clk 0:02:47]}  b4 {[%clk 0:02:46]} 9. Nb1 {[%clk 0:02:46]}  a5 {[%clk 0:02:46]} 10. Bd4 {[%clk 0:02:45]}  Nf6 {[%clk 0:02:45]} 11. g4 {[%clk 0:02:44]}  e5 {[%clk 0:02:24]} 12. dxe6 {[%clk 0:02:42]}  fxe6 {[%clk 0:02:21]} 13. g5 {[%clk 0:02:40]}  Nh5 {[%clk 0:02:21]} 14. Bxg7 {[%clk 0:02:39]}  Nxg7 {[%clk 0:02:20]} 15. e5 {[%clk 0:02:33]}  d5 {[%clk 0:02:18]} 16. Qf4 {[%clk 0:02:11]}  Rf8 {[%clk 0:02:09]} 17. Qh4 {[%clk 0:02:10]}  Nh5 {[%clk 0:02:09]} 18. Nh3 {[%clk 0:01:55]}  Rxf3 {[%clk 0:01:59]} 19. Be2 {[%clk 0:01:54]}  Rxh3 {[%clk 0:01:55]} 20. Qxh3 {[%clk 0:01:50]}  Qxg5+ {[%clk 0:01:54]} 21. Nd2 {[%clk 0:01:49]}  Nf4 {[%clk 0:01:53]} 22. Qe3 {[%clk 0:01:26]}  Nxe2+ {[%clk 0:01:42]} 23. Qxe2 {[%clk 0:01:25]}  Ba6 {[%clk 0:01:42]} 24. Qf2 {[%clk 0:01:17]}  O-O-O {[%clk 0:01:41]} 25. Qc5 {[%clk 0:01:15]}  Be2 {[%clk 0:01:26]} 26. Rde1 {[%clk 0:01:07]}  Bh5 {[%clk 0:00:54]} 27. Qxa5 {[%clk 0:01:01]}  Qf4 {[%clk 0:00:54]} 28. b3 {[%clk 0:00:51]}  Qd4 {[%clk 0:00:52]} 29. Qa6+ {[%clk 0:00:46]}  Kd7 {[%clk 0:00:51]} 30. Rhf1 {[%clk 0:00:44]}  Ra8 {[%clk 0:00:48]} 31. Qb7 {[%clk 0:00:33]}  g5 {[%clk 0:00:44]} 32. Nb1 {[%clk 0:00:25]}  Rxa2 {[%clk 0:00:43]} 33. Qb8 {[%clk 0:00:21]}  Qb2+ {[%clk 0:00:38]} 34. Kd2 {[%clk 0:00:20]}  Qxc2+ {[%clk 0:00:38]} 35. Ke3 {[%clk 0:00:20]}  Qe4# {[%clk 0:00:38]} 0-1


[Site "https://www.chess.com"]

[Event "Titled Tuesday Blitz June 28 Early 2022"]
[White "Lianes Garcia, Marcos"]
[Black "Joie, Sebastien"]
[WhiteFideId "32060777"]
[BlackFideId "650420"]
[WhiteElo "2310"]
[BlackElo "2397"]
[Result "0-1"]
[Round "05"]
[TimeControl "180+1"]
[Date "2022.06.28"]
[WhiteClock "0:00:03"]
[BlackClock "0:00:08"]

1. e4 {[%clk 0:03:00]}  c6 {[%clk 0:02:56]} 2. g3 {[%clk 0:03:00]}  d5 {[%clk 0:02:57]} 3. Bg2 {[%clk 0:03:00]}  dxe4 {[%clk 0:02:54]} 4. Bxe4 {[%clk 0:03:01]}  Nf6 {[%clk 0:02:53]} 5. Bg2 {[%clk 0:03:02]}  g6 {[%clk 0:02:53]} 6. d4 {[%clk 0:03:02]}  Bg7 {[%clk 0:02:53]} 7. Ne2 {[%clk 0:03:02]}  O-O {[%clk 0:02:54]} 8. O-O {[%clk 0:03:03]}  Nbd7 {[%clk 0:02:51]} 9. c4 {[%clk 0:03:01]}  Qa5 {[%clk 0:02:40]} 10. Nbc3 {[%clk 0:03:00]}  Rd8 {[%clk 0:02:36]} 11. a3 {[%clk 0:02:52]}  e5 {[%clk 0:02:35]} 12. d5 {[%clk 0:02:36]}  cxd5 {[%clk 0:02:22]} 13. cxd5 {[%clk 0:02:35]}  Nb6 {[%clk 0:02:17]} 14. Bg5 {[%clk 0:02:19]}  Nc4 {[%clk 0:02:06]} 15. Qb3 {[%clk 0:02:04]}  Nd6 {[%clk 0:02:03]} 16. h3 {[%clk 0:01:52]}  Bd7 {[%clk 0:02:01]} 17. Rac1 {[%clk 0:01:48]}  Rac8 {[%clk 0:01:57]} 18. Rfd1 {[%clk 0:01:48]}  Re8 {[%clk 0:01:54]} 19. Bd2 {[%clk 0:01:37]}  Qa6 {[%clk 0:01:51]} 20. Bf1 {[%clk 0:01:32]}  b5 {[%clk 0:01:46]} 21. Na2 {[%clk 0:01:23]}  Nfe4 {[%clk 0:01:39]} 22. Be3 {[%clk 0:01:15]}  Nc4 {[%clk 0:01:29]} 23. Nb4 {[%clk 0:01:10]}  Qb7 {[%clk 0:01:15]} 24. Bg2 {[%clk 0:01:10]}  Ned6 {[%clk 0:01:14]} 25. Nc6 {[%clk 0:01:00]}  Rc7 {[%clk 0:01:07]} 26. Bc5 {[%clk 0:00:56]}  Bf8 {[%clk 0:00:59]} 27. Nc3 {[%clk 0:00:53]}  a6 {[%clk 0:00:59]} 28. Kh2 {[%clk 0:00:52]}  f5 {[%clk 0:00:57]} 29. Qa2 {[%clk 0:00:47]}  e4 {[%clk 0:00:57]} 30. b3 {[%clk 0:00:46]}  Ne5 {[%clk 0:00:53]} 31. Nxe5 {[%clk 0:00:42]}  Rxe5 {[%clk 0:00:54]} 32. Bd4 {[%clk 0:00:42]}  Re8 {[%clk 0:00:53]} 33. Qd2 {[%clk 0:00:42]}  a5 {[%clk 0:00:42]} 34. Qg5 {[%clk 0:00:39]}  Bg7 {[%clk 0:00:35]} 35. Bxg7 {[%clk 0:00:37]}  Kxg7 {[%clk 0:00:36]} 36. Qf4 {[%clk 0:00:37]}  Nf7 {[%clk 0:00:33]} 37. h4 {[%clk 0:00:32]}  Bc8 {[%clk 0:00:32]} 38. Bf1 {[%clk 0:00:26]}  Qb6 {[%clk 0:00:27]} 39. Nxb5 {[%clk 0:00:23]}  Rxc1 {[%clk 0:00:26]} 40. Rxc1 {[%clk 0:00:24]}  Ba6 {[%clk 0:00:26]} 41. a4 {[%clk 0:00:22]}  Ne5 {[%clk 0:00:24]} 42. Kg2 {[%clk 0:00:21]}  Bxb5 {[%clk 0:00:20]} 43. Bxb5 {[%clk 0:00:22]}  Re7 {[%clk 0:00:21]} 44. Rc3 {[%clk 0:00:17]}  Ng4 {[%clk 0:00:20]} 45. d6 {[%clk 0:00:13]}  Re6 {[%clk 0:00:14]} 46. d7 {[%clk 0:00:13]}  Rd6 {[%clk 0:00:15]} 47. Be2 {[%clk 0:00:09]}  Nf6 {[%clk 0:00:14]} 48. h5 {[%clk 0:00:08]}  Rxd7 {[%clk 0:00:14]} 49. h6+ {[%clk 0:00:09]}  Kf7 {[%clk 0:00:14]} 50. Qb8 {[%clk 0:00:08]}  Qd8 {[%clk 0:00:11]} 51. Bc4+ {[%clk 0:00:06]}  Ke7 {[%clk 0:00:11]} 52. Qe5+ {[%clk 0:00:07]}  Kf8 {[%clk 0:00:11]} 53. Qc5+ {[%clk 0:00:06]}  Qe7 {[%clk 0:00:12]} 54. Qxa5 {[%clk 0:00:06]}  Ng4 {[%clk 0:00:10]} 55. Qa8+ {[%clk 0:00:04]}  Rd8 {[%clk 0:00:11]} 56. Qc6 {[%clk 0:00:04]}  Ne5 {[%clk 0:00:10]} 57. Qb5 {[%clk 0:00:03]}  e3 {[%clk 0:00:09]} 58. f4 {[%clk 0:00:03]}  Nxc4 {[%clk 0:00:08]} 59. Qxc4 {[%clk 0:00:03]}  e2 {[%clk 0:00:08]} 0-1


[Site "https://www.chess.com"]